fUSD/lending_fUSD_20241205
["ID","MTS","AMOUNT","RATE_DAILY","PERIOD"]
[344404286,1733418635366,-11742.66035494,7.684e-05,2]
[344404287,1733418635375,-515.35866736,7.684e-05,2]
[344404288,1733418635384,-200.0,7.684e-05,2]
[344404289,1733418635394,-200.0,7.684e-05,2]
[344404290,1733418635403,-11742.66035494,7.685e-05,2]
[344404291,1733418635413,-1469.43864764,7.685e-05,2]
[344404292,1733418635422,-200.0,7.685e-05,2]
[344404293,1733418635432,-1142.2746266,7.685e-05,2]
[344404294,1733418635441,-481.8971081,7.685e-05,2]
[344404295,1733418635452,-200.0,7.685e-05,2]
[344404296,1733418635466,-200.0,7.685e-05,2]
[344404297,1733418635476,-11742.66035494,7.685e-05,2]
[344404298,1733418635490,-481.8971081,7.686e-05,2]
[344404299,1733418635501,-856.70596995,7.686e-05,2]
[344404300,1733418635512,-619.91942947,7.686e-05,2]
[344404301,1733418635521,-200.0,7.687e-05,2]
[344404302,1733418635531,-515.35866736,7.687e-05,2]
[344404303,1733418635542,-200.0,7.687e-05,2]
[344404304,1733418635551,-200.0,7.687e-05,2]
[344404305,1733418635560,-8806.99526621,7.687e-05,2]
[344404306,1733418635569,-826.5592393,7.687e-05,2]
[344404307,1733418635578,-481.8971081,7.688e-05,2]
[344404308,1733418635588,-642.52947746,7.688e-05,2]
[344404309,1733418635598,-200.0,7.688e-05,2]
[344404310,1733418635608,-200.0,7.688e-05,2]
[344404311,1733418635617,-619.91942947,7.688e-05,2]
[344404312,1733418635627,-4953.93483724,7.688e-05,2]
[344404313,1733418635637,-200.0,7.688e-05,2]
[344404314,1733418635646,-642.52947746,7.688e-05,2]
[344404315,1733418635656,-481.8971081,7.688e-05,2]
[344404316,1733418635665,-4953.93483724,7.688e-05,2]
[344404317,1733418635675,-687.14488982,7.689e-05,2]
[344404318,1733418635684,-856.70596995,7.689e-05,2]
[344404319,1733418635693,-200.0,7.689e-05,2]
[344404320,1733418635702,-8806.99526621,7.689e-05,2]
[344404321,1733418635712,-642.52947746,7.689e-05,2]
[344404322,1733418635721,-4953.93483724,7.69e-05,2]
[344404323,1733418635734,-211.13895462,7.69e-05,2]
[344404324,1733418635743,-211.13895462,7.69e-05,2]
[344404325,1733418635753,-200.0,7.69e-05,2]
[344404326,1733418635762,-916.19318642,7.69e-05,2]
[344404327,1733418635771,-8500.0,7.69e-05,2]
[344404328,1733418635781,-200.0,7.69e-05,2]
[344404329,1733418635790,-687.14488982,7.69e-05,2]
[344404330,1733418635799,-856.70596995,7.691e-05,2]
[344404331,1733418635808,-4953.93483724,7.691e-05,2]
[344404332,1733418635817,-4953.93483724,7.692e-05,2]
[344404333,1733418635826,-200.0,7.692e-05,2]
[344404334,1733418635835,-11742.66035494,7.692e-05,2]
[344404335,1733418635845,-1142.2746266,7.692e-05,2]
[344404336,1733418635854,-8806.99526621,7.692e-05,2]
[344404337,1733418635863,-619.91942947,7.692e-05,2]
[344404338,1733418635871,-200.0,7.692e-05,2]
[344404339,1733418635881,-515.35866736,7.692e-05,2]
[344404340,1733418635890,-46815.77500904,7.693e-05,2]
[344404341,1733418635899,-515.35866736,7.693e-05,2]
[344404342,1733418635909,-4953.93483724,7.693e-05,2]
[344404343,1733418635918,-11742.66035494,7.694e-05,2]
[344404344,1733418635928,-642.52947746,7.694e-05,2]
[344404345,1733418635941,-200.0,7.694e-05,2]
[344404346,1733418635951,-916.19318642,7.694e-05,2]
[344404347,1733418635960,-200.0,7.695e-05,2]
[344404348,1733418635970,-1102.07898573,7.695e-05,2]
[344404349,1733418635979,-200.0,7.695e-05,2]
[344404350,1733418635993,-46815.77500904,7.695e-05,2]
[344404351,1733418636002,-200.0,7.695e-05,2]
[344404352,1733418636012,-916.19318642,7.696e-05,2]
[344404353,1733418636021,-826.5592393,7.696e-05,2]
[344404354,1733418636030,-826.5592393,7.696e-05,2]
[344404355,1733418636039,-826.5592393,7.696e-05,2]
[344404356,1733418636049,-386.51900052,7.696e-05,2]
[344404357,1733418636058,-200.0,7.696e-05,2]
[344404358,1733418636068,-200.0,7.697e-05,2]
[344404359,1733418636078,-200.0,7.697e-05,2]
[344404360,1733418636087,-1102.07898573,7.697e-05,2]
[344404361,1733418636096,-8806.99526621,7.697e-05,2]
[344404362,1733418636106,-200.0,7.697e-05,2]
[344404363,1733418636116,-515.35866736,7.697e-05,2]
[344404364,1733418636125,-6605.24644965,7.697e-05,2]
[344404365,1733418636134,-200.0,7.697e-05,2]
[344404366,1733418636143,-7552.39855963,7.697e-05,2]
[344404367,1733418636156,-4190.26179531,7.697e-05,2]
[344404368,1733418636166,-642.52947746,7.697e-05,2]
[344404369,1733418636175,-6605.24644965,7.698e-05,2]
[344404370,1733418636184,-515.35866736,7.698e-05,2]
[344404371,1733418636193,-1469.43864764,7.698e-05,2]
[344404372,1733418636203,-151.0,7.698e-05,2]
[344404373,1733418636212,-151.0,7.698e-05,2]
[344404374,1733418636221,-150.0,7.698e-05,2]
[344404375,1733418636234,-150.0,7.698e-05,2]
[344404376,1733418636244,-150.0,7.698e-05,2]
[344404377,1733418636253,-7850.0,7.698e-05,2]
[344404378,1733418636262,-481.8971081,7.698e-05,2]
[344404379,1733418636271,-386.51900052,7.698e-05,2]
[344404380,1733418636280,-8806.99526621,7.698e-05,2]
[344404381,1733418636290,-826.5592393,7.698e-05,2]
[344404382,1733418636299,-642.52947746,7.698e-05,2]
[344404383,1733418636309,-687.14488982,7.699e-05,2]
[344404384,1733418636319,-386.51900052,7.699e-05,2]
[344404385,1733418636329,-6605.24644965,7.699e-05,2]
[344404386,1733418636340,-211.13895462,7.699e-05,2]
[344404387,1733418636350,-8500.0,7.699e-05,2]
[344404388,1733418636359,-5155.50096837,7.699e-05,2]
[344404389,1733418636368,-211.13895462,7.699e-05,2]
[344404390,1733418636377,-1469.43864764,7.699e-05,2]
[344404391,1733418636387,-25844.17316933,7.699e-05,2]
[344404392,1733418636403,-1122.046,7.699e-05,2]
[344404393,1733418636414,-9309.300001,7.699e-05,2]
[344404394,1733418636426,-2416.67805389,7.699e-05,2]
[344404395,1733418636437,-1410.68462305,7.699e-05,2]
[344404396,1733418636449,-1570.73770885,7.699e-05,2]
[344404397,1733418636463,-5142.15545292,7.699e-05,2]
[344404398,1733418636473,-200.0,7.699e-05,2]
[344404399,1733418636485,-619.91942947,7.7e-05,2]
[344404400,1733418636495,-280.21745732,7.716e-05,2]
[344404401,1733418636504,-195.58,7.753e-05,2]
[344404402,1733418636514,-1188.41,7.769e-05,2]
[344404403,1733418636523,-334.64,7.77e-05,2]
[344404404,1733418636533,-1751.36,7.77e-05,2]
[344404405,1733418636542,-1893.0,7.77e-05,2]
[344404406,1733418636552,-1252.0,7.77e-05,2]
[344404407,1733418636561,-816.0,7.77e-05,2]
[344404408,1733418636570,-3760.0,7.77e-05,2]
[344404409,1733418636579,-535.0,7.77e-05,2]
[344404410,1733418636589,-976.0,7.77e-05,2]
[344404411,1733418636598,-3528.0,7.77e-05,2]
[344404412,1733418636607,-4276.6,7.77e-05,2]
[344404413,1733418636617,-1198.21145256,7.77e-05,2]
[344404414,1733418636629,-4411.41911155,7.77e-05,2]
[344404415,1733418636659,-386.51900052,7.69e-05,2]
[344404416,1733418636668,-353.36943589,7.77e-05,2]
[344404417,1733418636678,-1166.0,7.77e-05,2]
[344404418,1733418636687,-273.093,7.77e-05,2]
[344404419,1733418636697,-7933.99856359,7.77e-05,2]
[344404421,1733418638059,-386.51900052,7.677e-05,2]
[344404422,1733418638069,-361.42283107,7.683e-05,2]
[344404423,1733418638079,-361.42283107,7.684e-05,2]
[344404424,1733418638087,-361.42283107,7.688e-05,2]
[344404425,1733418638097,-500.0,7.736e-05,2]
[344404426,1733418638106,-268.20418966,7.77e-05,2]
[344404427,1733418638174,-5508.79724675,7.77e-05,2]
[344404428,1733418638183,-879.643,7.77e-05,2]
[344404429,1733418638193,-1705.16999073,7.77e-05,2]
[344404430,1733418638203,-2137.318,7.805e-05,2]
[344404431,1733418638212,-179.489,7.805e-05,2]
[344404432,1733418638222,-150.99,7.805e-05,2]
[344404433,1733418638236,-250.0,7.842e-05,2]
[344404434,1733418638246,-140.21337978,7.887e-05,2]
[344404435,1733418638257,-500.0,7.887e-05,2]
[344404436,1733418638278,-361.42283107,7.69e-05,2]
[344404437,1733418638288,-1064.95661078,7.887e-05,2]
[344404438,1733418638297,-204.0,7.973e-05,2]
[344404439,1733418638307,-204.0,7.973e-05,2]
[344404440,1733418638317,-25.66407941,7.973e-05,2]
[344404441,1733418638328,-178.33592059,7.973e-05,2]
[344404442,1733418638338,-204.0,7.973e-05,2]
[344404443,1733418638347,-204.0,7.973e-05,2]
[344404444,1733418638357,-204.0,7.973e-05,2]
[344404445,1733418638366,-204.0,7.973e-05,2]
[344404446,1733418638376,-204.0,7.973e-05,2]
[344404447,1733418638385,-204.0,7.973e-05,2]
[344404448,1733418638394,-204.0,7.973e-05,2]
[344404449,1733418638404,-204.0,7.973e-05,2]
[344404450,1733418638414,-204.0,7.973e-05,2]
[344404451,1733418638423,-236.0,7.975e-05,2]
[344404452,1733418638433,-236.0,7.975e-05,2]
[344404453,1733418638442,-236.0,7.975e-05,2]
[344404470,1733418638721,-236.0,7.975e-05,2]
[344404472,1733418638735,-236.0,7.975e-05,2]
[344404473,1733418638745,-236.0,7.975e-05,2]
[344404476,1733418638756,-236.0,7.975e-05,2]
[344404478,1733418638766,-236.0,7.975e-05,2]
[344404479,1733418638775,-236.0,7.975e-05,2]
[344404481,1733418638785,-236.0,7.975e-05,2]
[344404483,1733418638794,-236.0,7.975e-05,2]
[344404485,1733418638803,-236.0,7.975e-05,2]
[344404486,1733418638813,-236.0,7.975e-05,2]
[344404487,1733418638823,-204.0,7.983e-05,2]
[344404488,1733418638832,-204.0,7.983e-05,2]
[344404489,1733418638842,-154.96023109,7.983e-05,2]
[344404490,1733418638854,-49.03976891,7.983e-05,2]
[344404491,1733418638863,-204.0,7.983e-05,2]
[344404492,1733418638873,-204.0,7.983e-05,2]
[344404493,1733418638883,-204.0,7.983e-05,2]
[344404494,1733418638892,-204.0,7.983e-05,2]
[344404495,1733418638901,-204.0,7.983e-05,2]
[344404496,1733418638911,-204.0,7.983e-05,2]
[344404497,1733418638921,-204.0,7.983e-05,2]
[344404498,1733418638930,-204.0,7.983e-05,2]
[344404499,1733418638939,-204.0,7.983e-05,2]
[344404500,1733418638948,-204.0,7.983e-05,2]
[344404501,1733418638958,-236.0,7.985e-05,2]
[344404502,1733418638967,-236.0,7.985e-05,2]
[344404503,1733418638985,-236.0,7.985e-05,2]
[344404504,1733418638994,-236.0,7.985e-05,2]
[344404505,1733418639004,-236.0,7.985e-05,2]
[344404506,1733418639013,-236.0,7.985e-05,2]
[344404507,1733418639022,-236.0,7.985e-05,2]
[344404508,1733418639031,-236.0,7.985e-05,2]
[344404509,1733418639041,-236.0,7.985e-05,2]
[344404510,1733418639051,-236.0,7.985e-05,2]
[344404511,1733418639060,-204.0,7.993e-05,2]
[344404512,1733418639070,-204.0,7.993e-05,2]
[344404513,1733418639080,-204.0,7.993e-05,2]
[344404514,1733418639091,-204.0,7.993e-05,2]
[344404515,1733418639102,-204.0,7.993e-05,2]
[344404516,1733418639111,-236.0,7.994e-05,2]
[344404517,1733418639121,-236.0,7.994e-05,2]
[344404518,1733418639132,-236.0,7.994e-05,2]
[344404519,1733418639142,-236.0,7.994e-05,2]
[344404520,1733418639152,-204.0,8e-05,2]
[344404521,1733418639162,-204.0,8e-05,2]
[344404522,1733418639173,-204.0,8e-05,2]
[344404523,1733418639183,-204.0,8e-05,2]
[344404524,1733418639192,-204.0,8e-05,2]
[344404525,1733418639202,-204.0,8e-05,2]
[344404526,1733418639211,-204.0,8e-05,2]
[344404527,1733418639220,-204.0,8e-05,2]
[344404528,1733418639230,-204.0,8e-05,2]
[344404529,1733418639243,-204.0,8e-05,2]
[344404530,1733418639252,-204.0,8e-05,2]
[344404531,1733418639261,-204.0,8e-05,2]
[344404532,1733418639271,-204.0,8e-05,2]
[344404533,1733418639280,-204.0,8e-05,2]
[344404534,1733418639289,-204.0,8e-05,2]
[344404535,1733418639299,-204.0,8e-05,2]
[344404536,1733418639308,-204.0,8e-05,2]
[344404537,1733418639318,-204.0,8e-05,2]
[344404538,1733418639327,-204.0,8e-05,2]
[344404539,1733418639337,-204.0,8e-05,2]
[344404540,1733418639347,-204.0,8e-05,2]
[344404541,1733418639356,-204.0,8e-05,2]
[344404542,1733418639366,-204.0,8e-05,2]
[344404543,1733418639375,-204.0,8e-05,2]
[344404544,1733418639385,-204.0,8e-05,2]
[344404545,1733418639395,-204.0,8e-05,2]
[344404546,1733418639404,-204.0,8e-05,2]
[344404547,1733418639413,-204.0,8e-05,2]
[344404548,1733418639423,-204.0,8e-05,2]
[344404549,1733418639432,-204.0,8e-05,2]
[344404550,1733418639442,-204.0,8e-05,2]
[344404551,1733418639454,-204.0,8e-05,2]
[344404552,1733418639464,-204.0,8e-05,2]
[344404553,1733418639473,-204.0,8e-05,2]
[344404554,1733418639486,-204.0,8e-05,2]
[344404555,1733418639495,-204.0,8e-05,2]
[344404556,1733418639504,-204.0,8e-05,2]
[344404557,1733418639514,-204.0,8e-05,2]
[344404558,1733418639523,-204.0,8e-05,2]
[344404559,1733418639535,-204.0,8e-05,2]
[344404560,1733418639545,-204.0,8e-05,2]
[344404561,1733418639554,-204.0,8e-05,2]
[344404562,1733418639564,-204.0,8e-05,2]
[344404563,1733418639573,-204.0,8e-05,2]
[344404564,1733418639583,-204.0,8e-05,2]
[344404565,1733418639593,-204.0,8e-05,2]
[344404566,1733418639603,-204.0,8e-05,2]
[344404567,1733418639613,-204.0,8e-05,2]
[344404568,1733418639622,-204.0,8e-05,2]
[344404569,1733418639632,-204.0,8e-05,2]
[344404570,1733418639641,-204.0,8e-05,2]
[344404571,1733418639662,-204.0,8e-05,2]
[344404572,1733418639672,-759.82,8e-05,2]
[344404573,1733418639681,-759.82,8e-05,2]
[344404574,1733418639692,-759.82,8e-05,2]
[344404575,1733418639702,-759.82,8e-05,2]
[344404576,1733418639713,-759.82,8e-05,2]
[344404577,1733418639723,-759.82,8e-05,2]
[344404578,1733418639735,-759.82,8e-05,2]
[344404579,1733418639745,-759.82,8e-05,2]
[344404580,1733418639755,-759.82,8e-05,2]
[344404581,1733418639766,-759.82,8e-05,2]
[344404582,1733418639775,-759.82,8e-05,2]
[344404583,1733418639785,-759.82,8e-05,2]
[344404584,1733418639794,-759.82,8e-05,2]
[344404585,1733418639804,-759.82,8e-05,2]
[344404586,1733418639814,-759.82,8e-05,2]
[344404587,1733418639824,-759.82,8e-05,2]
[344404588,1733418639834,-759.82,8e-05,2]
[344404589,1733418639844,-759.82,8e-05,2]
[344404590,1733418639854,-759.82,8e-05,2]
[344404591,1733418639863,-759.82,8e-05,2]
[344404592,1733418639873,-236.0,8.004e-05,2]
[344404593,1733418639883,-236.0,8.004e-05,2]
[344404594,1733418639893,-236.0,8.004e-05,2]
[344404595,1733418639903,-236.0,8.004e-05,2]
[344404596,1733418639913,-236.0,8.004e-05,2]
[344404597,1733418639923,-236.0,8.004e-05,2]
[344404598,1733418639933,-236.0,8.004e-05,2]
[344404599,1733418639943,-236.0,8.004e-05,2]
[344404600,1733418639953,-236.0,8.004e-05,2]
[344404601,1733418639963,-236.0,8.004e-05,2]
[344404602,1733418639973,-236.0,8.004e-05,2]
[344404604,1733418639986,-236.0,8.004e-05,2]
[344404605,1733418639996,-236.0,8.004e-05,2]
[344404606,1733418640007,-236.0,8.004e-05,2]
[344404607,1733418640016,-236.0,8.004e-05,2]
[344404608,1733418640026,-236.0,8.004e-05,2]
[344404609,1733418640036,-236.0,8.004e-05,2]
[344404610,1733418640045,-236.0,8.004e-05,2]
[344404611,1733418640055,-236.0,8.004e-05,2]
[344404612,1733418640064,-236.0,8.004e-05,2]
[344404613,1733418640074,-236.0,8.004e-05,2]
[344404614,1733418640084,-236.0,8.004e-05,2]
[344404615,1733418640093,-236.0,8.004e-05,2]
[344404616,1733418640103,-226.21853687,8.004e-05,2]
[344404617,1733418640122,-9.78146313,8.004e-05,2]
[344404618,1733418640133,-236.0,8.004e-05,2]
[344404619,1733418640142,-211.76940728,8.004e-05,2]
[344404620,1733418640224,-361.42283107,7.689e-05,2]
[344404621,1733418640238,-361.42283107,7.694e-05,2]
[344404622,1733418640247,-24.23059272,8.004e-05,2]
[344404623,1733418640257,-212.77374514,8.004e-05,2]
[344404624,1733418640270,-23.22625486,8.004e-05,2]
[344404625,1733418640280,-236.0,8.004e-05,2]
[344404626,1733418640289,-236.0,8.004e-05,2]
[344404627,1733418640299,-236.0,8.004e-05,2]
[344404628,1733418640308,-236.0,8.004e-05,2]
[344404629,1733418640318,-236.0,8.004e-05,2]
[344404630,1733418640327,-236.0,8.004e-05,2]
[344404631,1733418640337,-236.0,8.004e-05,2]
[344404632,1733418640347,-236.0,8.004e-05,2]
[344404633,1733418640356,-236.0,8.004e-05,2]
[344404634,1733418640366,-236.0,8.004e-05,2]
[344404635,1733418640376,-236.0,8.004e-05,2]
[344404636,1733418640385,-236.0,8.004e-05,2]
[344404637,1733418640395,-236.0,8.004e-05,2]
[344404639,1733418640405,-236.0,8.004e-05,2]
[344404640,1733418640415,-236.0,8.004e-05,2]
[344404642,1733418640424,-236.0,8.004e-05,2]
[344404644,1733418640434,-236.0,8.004e-05,2]
[344404645,1733418640444,-236.0,8.004e-05,2]
[344404646,1733418640456,-236.0,8.004e-05,2]
[344404647,1733418640469,-236.0,8.004e-05,2]
[344404648,1733418640479,-236.0,8.004e-05,2]
[344404649,1733418640493,-236.0,8.004e-05,2]
[344404650,1733418640505,-236.0,8.004e-05,2]
[344404651,1733418640514,-236.0,8.004e-05,2]
[344404652,1733418640524,-236.0,8.004e-05,2]
[344404654,1733418640534,-236.0,8.004e-05,2]
[344404655,1733418640544,-236.0,8.004e-05,2]
[344404656,1733418640553,-236.0,8.004e-05,2]
[344404657,1733418640563,-236.0,8.004e-05,2]
[344404658,1733418640574,-1705.16999056,8.005e-05,2]
[344404659,1733418640583,-1000.0,8.078e-05,2]
[344404660,1733418640593,-1705.16999056,8.122e-05,2]
[344404661,1733418640603,-420.0,8.135e-05,2]
[344404662,1733418640612,-255.0,8.136e-05,2]
[344404663,1733418640622,-500.0,8.177e-05,2]
[344404664,1733418640632,-500.0,8.177e-05,2]
[344404665,1733418640641,-500.0,8.177e-05,2]
[344404666,1733418640651,-500.0,8.177e-05,2]
[344404667,1733418640661,-2291.61,8.177e-05,2]
[344404668,1733418640670,-500.0,8.177e-05,2]
[344404669,1733418640680,-500.0,8.177e-05,2]
[344404670,1733418640689,-500.0,8.177e-05,2]
[344404671,1733418640698,-500.0,8.177e-05,2]
[344404672,1733418640708,-500.0,8.177e-05,2]
[344404673,1733418640717,-500.0,8.177e-05,2]
[344404674,1733418640727,-500.0,8.177e-05,2]
[344404675,1733418640739,-308.48377024,8.177e-05,2]
[344404676,1733418640748,-442.77206306,8.177e-05,2]
[344404677,1733418640758,-500.0,8.177e-05,2]
[344404678,1733418640767,-500.0,8.177e-05,2]
[344404679,1733418640777,-500.0,8.177e-05,2]
[344404680,1733418640787,-500.0,8.177e-05,2]
[344404681,1733418640797,-500.0,8.177e-05,2]
[344404682,1733418640807,-500.0,8.177e-05,2]
[344404683,1733418640817,-500.0,8.177e-05,2]
[344404684,1733418640826,-500.0,8.177e-05,2]
[344404685,1733418640836,-500.0,8.177e-05,2]
[344404686,1733418640846,-459.86190982,8.177e-05,2]
[344404687,1733418640858,-204.1725707,8.177e-05,2]
[344404688,1733418640871,-295.8274293,8.177e-05,2]
[344404689,1733418640881,-500.0,8.177e-05,2]
[344404690,1733418640891,-500.0,8.177e-05,2]
[344404691,1733418640901,-500.0,8.177e-05,2]
[344404692,1733418640910,-500.0,8.177e-05,2]
[344404693,1733418640920,-500.0,8.177e-05,2]
[344404694,1733418640930,-539.45698317,8.177e-05,2]
[344404695,1733418640939,-1733.83358753,8.178e-05,2]
[344404696,1733418640951,-28599.00282897,8.178e-05,2]
[344404697,1733418640964,-379.98248739,8.178e-05,2]
[344404698,1733418640975,-360.4710022,8.178e-05,2]
[344404699,1733418640990,-446.74751345,8.178e-05,2]
[344404700,1733418641001,-709.62892,8.178e-05,2]
[344404701,1733418641022,-4365.95429646,8.178e-05,2]
[344404702,1733418641031,-8458.74,8.219e-05,2]
[344404703,1733418641041,-1403.42464108,8.219e-05,2]
[344404704,1733418641060,-4357.50653395,8.219e-05,2]
[344404705,1733418641071,-269.86456758,8.219e-05,2]
[344404706,1733418641083,-490.62,8.219e-05,2]
[344404711,1733418643090,-500.0,8.177e-05,2]
[344404712,1733418643100,-1896.5189944,8.219e-05,2]
[344404713,1733418643111,-1351.58003,8.219e-05,2]
[344404715,1733418643123,-1836.16629,8.219e-05,2]
[344404716,1733418643134,-758.13894299,8.219e-05,2]
[344404717,1733418643143,-1000.0,8.219e-05,2]
[344404718,1733418643153,-895.35293901,8.219e-05,2]
[344404719,1733418643166,-106.29706099,8.219e-05,2]
[344404720,1733418643181,-300.0,8.219e-05,2]
[344404721,1733418643191,-250.0,8.219e-05,2]
[344404722,1733418643200,-23.00793816,8.22e-05,2]
[344404723,1733418643212,-226.99206184,8.22e-05,2]
[344404724,1733418643221,-1705.16999056,8.239e-05,2]
[344404725,1733418643231,-1000.0,8.284e-05,2]
[344404726,1733418643246,-1705.16999056,8.357e-05,2]
[344404727,1733418643256,-1705.16999056,8.474e-05,2]
[344404728,1733418643265,-150.0,8.572e-05,2]
[344404729,1733418643275,-1605.89796648,8.592e-05,2]
[344404730,1733418643287,-99.27202408,8.592e-05,2]
[344404731,1733418643296,-1001.65,8.676e-05,2]
[344404732,1733418643305,-1705.16999056,8.709e-05,2]
[344404733,1733418643314,-200.0,8.74e-05,2]
[344404734,1733418643324,-166.84,8.809e-05,2]
[344404735,1733418643333,-1705.16999056,8.826e-05,2]
[344404736,1733418643342,-61.10950004,8.886e-05,2]
[344404737,1733418643354,-438.89049996,8.886e-05,2]
[344404738,1733418643363,-348.21122329,8.886e-05,2]
[344404739,1733418643374,-646.08,8.886e-05,2]
[344404740,1733418643384,-371.17968733,8.886e-05,2]
[344404741,1733418643393,-500.0,8.886e-05,2]
[344404742,1733418643403,-557.76873678,8.944e-05,2]
[344404743,1733418643414,-1147.40125378,8.944e-05,2]
[344404744,1733418643423,-587.0,8.948e-05,2]
[344404745,1733418643432,-433.0,8.949e-05,2]
[344404746,1733418643442,-151.0,9e-05,2]
[344404747,1733418643451,-151.0,9e-05,2]
[344404748,1733418643461,-1615.0,9.026e-05,2]
[344404749,1733418643472,-713.42183948,9.061e-05,2]
[344404750,1733418643488,-759.87094994,9.061e-05,2]
[344404751,1733418643508,-231.87720114,9.061e-05,2]
[344404752,1733418643519,-837.66447965,9.073e-05,2]
[344404753,1733418643537,-1859.403157,9.073e-05,2]
[344404754,1733418643552,-2888.31316129,9.073e-05,2]
[344404755,1733418643572,-3838.98206005,9.073e-05,2]
[344404756,1733418643593,-2194.95306885,9.073e-05,2]
[344404757,1733418643602,-1001.65,9.132e-05,2]
[344404758,1733418643612,-1705.16999056,9.178e-05,2]
[344404759,1733418643623,-1000.0,9.247e-05,2]
[344404760,1733418643635,-1705.16999056,9.296e-05,2]
[344404761,1733418643644,-1055.0,9.302e-05,2]
[344404762,1733418643654,-500.0,9.4e-05,3]
[344404763,1733418643663,-898.39618058,9.413e-05,2]
[344404764,1733418643675,-806.77380998,9.413e-05,2]
[344404765,1733418643685,-645.225,9.5e-05,2]
[344404766,1733418643694,-1000.0,9.5e-05,3]
[344404767,1733418643703,-1079.91516602,9.531e-05,2]
[344404768,1733418643714,-355.708,9.531e-05,2]
[344404769,1733418643726,-269.54682454,9.531e-05,2]
[344404770,1733418643737,-150.0,9.535e-05,2]
[344404771,1733418643746,-1001.65,9.589e-05,2]
[344404772,1733418643755,-604.10317546,9.6e-05,3]
[344404791,1733418646088,-273.75912918,8.177e-05,2]
[344404792,1733418646097,-52.15087082,9.6e-05,3]
[344404793,1733418646147,-461.96770415,9.6e-05,3]
[344404794,1733418646159,-381.77824957,9.6e-05,3]
[344404795,1733418646168,-1705.16999056,9.648e-05,2]
[344404796,1733418646178,-1034.60031887,9.7e-05,3]
[344404799,1733418646693,-965.39968113,9.7e-05,3]
[344404800,1733418646703,-1705.16999056,9.765e-05,2]
[344404802,1733418646712,-1055.0,9.791e-05,2]
[344404804,1733418646721,-1100.8912,9.8e-05,2]
[344404806,1733418646730,-1000.0,9.8e-05,2]
[344404808,1733418646744,-201.0,9.8e-05,2]
[344404810,1733418646754,-201.0,9.8e-05,2]
[344404838,1733418647002,-201.0,9.8e-05,2]
[344404840,1733418647016,-201.0,9.8e-05,2]
[344404842,1733418647025,-201.0,9.8e-05,2]
[344404844,1733418647034,-201.0,9.8e-05,2]
[344404846,1733418647044,-201.0,9.8e-05,2]
[344404848,1733418647053,-201.0,9.8e-05,2]
[344404850,1733418647062,-201.0,9.8e-05,2]
[344404852,1733418647071,-201.0,9.8e-05,2]
[344404854,1733418647080,-201.0,9.8e-05,2]
[344404856,1733418647088,-201.0,9.8e-05,2]
[344404858,1733418647098,-201.0,9.8e-05,2]
[344404860,1733418647107,-201.0,9.8e-05,2]
[344404861,1733418647116,-201.0,9.8e-05,2]
[344404863,1733418647126,-151.0,9.8e-05,2]
[344404865,1733418647135,-151.0,9.8e-05,2]
[344404867,1733418647144,-207.2461046,9.8e-05,2]
[344404869,1733418647155,-2500.0,9.8e-05,3]
[344404871,1733418647164,-150.0,9.836e-05,2]
[344404872,1733418647174,-823.0,9.843e-05,2]
[344404873,1733418647183,-736.0,9.844e-05,2]
[344404874,1733418647192,-1705.16999056,9.883e-05,2]
[344404875,1733418647201,-500.0,9.898e-05,2]
[344404876,1733418647211,-500.0,9.898e-05,2]
[344404877,1733418647221,-2291.61,9.898e-05,2]
[344404878,1733418647231,-2000.0,9.898e-05,2]
[344404879,1733418647246,-500.0,9.898e-05,2]
[344404880,1733418647257,-598.09,9.898e-05,2]
[344404881,1733418647267,-500.0,9.898e-05,2]
[344404882,1733418647278,-258.94684492,9.898e-05,2]
[344404884,1733418647289,-297.76,9.898e-05,2]
[344404886,1733418647300,-500.0,9.898e-05,2]
[344404888,1733418647310,-322.29,9.898e-05,2]
[344404890,1733418647319,-646.08,9.898e-05,2]
[344404892,1733418647329,-500.0,9.898e-05,2]